Workbook

Sheet Обзор открытия
B3: ОБЗОР ОТКРЫТИЯ | D3: Выделенные | E3: Фактические | F3: Баланс
C5: Общие расходы | D5: =SUM(D7:D11) -> 583,910.00 ₽ | E5: =SUM(E7:E11) -> 582,860.00 ₽ | F5: =E5-D5 -> -1,050.00 ₽
C7: Административные / общие | D7: =Расходы!D14 -> 10,200.00 ₽ | E7: =Расходы!E14 -> 9,150.00 ₽ | F7: =E7-D7 -> -1,050.00 ₽
C8: Расположение / офис | D8: =Расходы!D29 -> 354,910.00 ₽ | E8: =Расходы!E29 -> 354,910.00 ₽ | F8: 0
C9: Маркетинг | D9: =Расходы!D43 -> 13,300.00 ₽ | E9: =Расходы!E43 -> 13,300.00 ₽ | F9: 0
C10: Персонал | D10: =Расходы!D52 -> 205,000.00 ₽ | E10: =Расходы!E52 -> 205,000.00 ₽ | F10: 0
C11: Другое | D11: =Расходы!D60 -> 500.00 ₽ | E11: =Расходы!E60 -> 500.00 ₽ | F11: 0
C13: Общее финансирование | D13: =SUM(D15:D17) -> 600,000.00 ₽ | E13: =SUM(E15:E17) -> 620,000.00 ₽ | F13: 20,000.00 ₽
C15: Инвесторы | D15: =D29 -> 80,000.00 ₽ | E15: =E29 -> 80,000.00 ₽ | F15: 0
C16: Кредиты | D16: =D35 -> 500,000.00 ₽ | E16: =E35 -> 495,000.00 ₽ | F16: -5,000.00 ₽
C17: Дополнительное финансирование | D17: =D40 -> 20,000.00 ₽ | E17: =E40 -> 45,000.00 ₽ | F17: 25,000.00 ₽
C19: Финансовые средства за вычетом расходов | D19: =D13-D5 -> 16,090.00 ₽ | E19: =E13-E5 -> 37,140.00 ₽ | F19: 21,050.00 ₽
B21: ФИНАНСИРОВАНИЕ ОТКРЫТИЯ | D21: Выделенные | E21: Фактические | F21: Баланс
C23: Инвесторы
C25: Владелец 1 | D25: 50,000.00 ₽ | E25: 50,000.00 ₽ | F25: =E25-D25 -> 0
C26: Владелец 2 | D26: 30,000.00 ₽ | E26: 30,000.00 ₽ | F26: =E26-D26 -> 0
C27: Владелец 3 | D27: 0 | E27: 0 | F27: =E27-D27 -> 0
C28: Другое | D28: 0 | E28: 0 | F28: =E28-D28 -> 0
C29: Итог | D29: =SUM(D25:D28) -> 80,000.00 ₽ | E29: =SUM(E25:E28) -> 80,000.00 ₽ | F29: =E29-D29 -> 0
C30: Кредиты
C32: Банковский кредит | D32: 450,000.00 ₽ | E32: 450,000.00 ₽ | F32: =E32-D32 -> 0
C33: Небанковский кредит | D33: 50,000.00 ₽ | E33: 45,000.00 ₽ | F33: =E33-D33 -> -5,000.00 ₽
C34: Другое | D34: 0 | E34: 0 | F34: =E34-D34 -> 0
C35: Итог | D35: =SUM(D32:D34) -> 500,000.00 ₽ | E35: =SUM(E32:E34) -> 495,000.00 ₽ | F35: =E35-D35 -> -5,000.00 ₽
C36: Дополнительное финансирование
C38: Грант | D38: 20,000.00 ₽ | E38: 45,000.00 ₽ | F38: =E38-D38 -> 25,000.00 ₽
C39: Другое | D39: 0 | E39: 0 | F39: =E39-D39 -> 0
C40: Итог | D40: =SUM(D38:D39) -> 20,000.00 ₽ | E40: =SUM(E38:E39) -> 45,000.00 ₽ | F40: =E40-D40 -> 25,000.00 ₽
C42: Общее финансирование открытия | D42: =SUM(D29,D35,D40) -> 600,000.00 ₽ | E42: =SUM(E29,E35,E40) -> 620,000.00 ₽ | F42: =E42-D42 -> 20,000.00 ₽

Sheet Расходы
B3: РАСХОДЫ НА ОТКРЫТИЕ КОМПАНИИ | C3: Срок оплаты | D3: Выделенные | E3: Фактические | F3: Баланс
B5: Административные / общие
B7: Разрешения | D7: 1,500.00 ₽ | E7: 1,500.00 ₽ | F7: =E7-D7 -> 0
B8: Страховка | D8: 3,400.00 ₽ | E8: 3,200.00 ₽ | F8: -200.00 ₽
B9: Юридические расходы | D9: 300.00 ₽ | E9: 450.00 ₽ | F9: 150.00 ₽
B10: Бизнес-консультант | D10: 2,500.00 ₽ | E10: 2,000.00 ₽ | F10: -500.00 ₽
B11: Обучение | D11: 2,000.00 ₽ | E11: 1,500.00 ₽ | F11: -500.00 ₽
B12: Программное обеспечение (общее) | D12: 500.00 ₽ | E12: 500.00 ₽ | F12: 0
B13: Другое | D13: 0 | E13: 0 | F13: 0
B14: Итог | D14: =SUM(D7:D13) -> 10,200.00 ₽ | E14: =SUM(E7:E13) -> 9,150.00 ₽ | F14: -1,050.00 ₽
B15: Расположение / офис
B17: Аренда помещения | D17: 50,000.00 ₽ | E17: 50,000.00 ₽ | F17: =E17-D17 -> 0
B18: Затраты на коммунальные услуги | D18: 2,500.00 ₽ | E18: 2,500.00 ₽ | F18: 0
B19: Установка и годовая оплата телефона | D19: =50+30*12 -> 410.00 ₽ | E19: 410.00 ₽ | F19: 0
B20: Мебель | D20: 15,000.00 ₽ | E20: 15,000.00 ₽ | F20: 0
B21: Медицинское оборудование | D21: 150,000.00 ₽ | E21: 150,000.00 ₽ | F21: 0
B22: Оборудование | D22: 10,000.00 ₽ | E22: 10,000.00 ₽ | F22: 0
B23: Программное обеспечение (CRM и т. д.) | D23: 7,000.00 ₽ | E23: 7,000.00 ₽ | F23: 0
B24: Плата за установку | D24: 5,000.00 ₽ | E24: 5,000.00 ₽ | F24: 0
B25: Запасы перед началом работы (лекарства) | D25: 100,000.00 ₽ | E25: 100,000.00 ₽ | F25: 0
B26: Медицинские принадлежности (перчатки и т. д.) | D26: 5,000.00 ₽ | E26: 5,000.00 ₽ | F26: 0
B27: Разное | D27: 10,000.00 ₽ | E27: 10,000.00 ₽ | F27: 0
B28: Другое | D28: 0 | E28: 0 | F28: 0
B29: Итог | D29: =SUM(D17:D28) -> 354,910.00 ₽ | E29: =SUM(E17:E28) -> 354,910.00 ₽ | F29: =E29-D29 -> 0
B30: Маркетинг
B32: Разработка логотипа | D32: 300.00 ₽ | E32: 300.00 ₽ | F32: =E32-D32 -> 0
B33: Разработка фирменной символики | D33: 200.00 ₽ | E33: 200.00 ₽ | F33: =E33-D33 -> 0
B34: Реклама открытия | D34: 10,000.00 ₽ | E34: 10,000.00 ₽ | F34: =E34-D34 -> 0
B35: Веб-сайт | D35: 700.00 ₽ | E35: 700.00 ₽ | F35: 0
B36: Печатные маркетинговые материалы | D36: 500.00 ₽ | E36: 500.00 ₽ | F36: 0
B37: Рекламные материалы | D37: 500.00 ₽ | E37: 500.00 ₽ | F37: 0
B38: Регистрационный сбор | D38: 300.00 ₽ | E38: 300.00 ₽ | F38: 0
B39: Интернет-маркетинг | D39: 100.00 ₽ | E39: 100.00 ₽ | F39: 0
B40: Выставки-ярмарки | D40: 500.00 ₽ | E40: 500.00 ₽ | F40: 0
B41: События в сети | D41: 200.00 ₽ | E41: 200.00 ₽ | F41: 0
B42: Другое | D42: 0 | E42: 0 | F42: 0
B43: Итог | D43: =SUM(D32:D42) -> 13,300.00 ₽ | E43: =SUM(E32:E42) -> 13,300.00 ₽ | F43: 0
B44: Затраты на персонал
B46: Плата за размещение вакансий | D46: 0 | E46: 0 | F46: =E46-D46 -> 0
B47: Платежная ведомость | D47: 200,000.00 ₽ | E47: 200,000.00 ₽ | F47: 0
B48: Обучение | D48: 5,000.00 ₽ | E48: 5,000.00 ₽ | F48: 0
B49: Другое | D49: 0 | E49: 0 | F49: 0
B50: Другое | D50: 0 | E50: 0 | F50: 0
B51: Другое | D51: 0 | E51: 0 | F51: 0
B52: Итог | D52: =SUM(D46:D51) -> 205,000.00 ₽ | E52: =SUM(E46:E51) -> 205,000.00 ₽ | F52: 0
B53: Другое
B55: Резерв на непредвиденные расходы | D55: 0 | E55: 0 | F55: =E55-D55 -> 0
B56: Вечеринка в честь открытия | D56: 500.00 ₽ | E56: 500.00 ₽ | F56: 0
B57: Другое | D57: 0 | E57: 0 | F57: 0
B58: Другое | D58: 0 | E58: 0 | F58: 0
B59: Другое | D59: 0 | E59: 0 | F59: 0
B60: Итог | D60: =SUM(D55:D59) -> 500.00 ₽ | E60: =SUM(E55:E59) -> 500.00 ₽ | F60: 0
C62: Общие начальные расходы | D62: =SUM(D14,D29,D43,D52,D60) -> 583,910.00 ₽ | E62: =SUM(E14,E29,E43,E52,E60) -> 582,860.00 ₽ | F62: =E62-D62 -> -1,050.00 ₽

Sheet Прибыли и убытки
B3: ВЫРУЧКА | C3: =DATE(YEAR(TODAY()),1,1) -> 2019-01-01 | D3: =DATE(YEAR(C3),MONTH(C3)+1,1) -> 2019-02-01 | E3: =DATE(YEAR(D3),MONTH(D3)+1,1) -> 2019-03-01 | F3: 2019-04-01 | G3: 2019-05-01 | H3: 2019-06-01 | I3: 2019-07-01 | J3: 2019-08-01 | K3: 2019-09-01 | L3: 2019-10-01 | M3: 2019-11-01 | N3: 2019-12-01 | O3: С НАЧАЛА ГОДА
B4: Прогнозируемые продажи | C4: 80,000.00 ₽ | D4: 80,000.00 ₽ | E4: 80,000.00 ₽ | F4: 80,000.00 ₽ | G4: 80,000.00 ₽ | H4: 80,000.00 ₽ | I4: 80,000.00 ₽ | J4: 80,000.00 ₽ | K4: 80,000.00 ₽ | L4: 80,000.00 ₽ | M4: 80,000.00 ₽ | N4: 80,000.00 ₽ | O4: =SUM(C4:N4) -> 960,000.00 ₽
B5: Вычет (скидки, ошибки и т. д.) | C5: -5,000.00 ₽ | D5: -5,000.00 ₽ | E5: -5,000.00 ₽ | F5: -5,000.00 ₽ | G5: -5,000.00 ₽ | H5: -5,000.00 ₽ | I5: -5,000.00 ₽ | J5: -5,000.00 ₽ | K5: -5,000.00 ₽ | L5: -5,000.00 ₽ | M5: -5,000.00 ₽ | N5: -5,000.00 ₽ | O5: -60,000.00 ₽
B6: Выручка от услуг | C6: 0 | D6: 0 | E6: 0 | F6: 0 | G6: 0 | H6: 0 | I6: 0 | J6: 0 | K6: 0 | L6: 0 | M6: 0 | N6: 0 | O6: 0
B7: Другая выручка | C7: 0 | D7: 0 | E7: 0 | F7: 0 | G7: 0 | H7: 0 | I7: 0 | J7: 0 | K7: 0 | L7: 0 | M7: 0 | N7: 0 | O7: 0
B8: Чистая выручка от продаж | C8: =SUM(C4:C7) -> 75,000.00 ₽ | D8: =SUM(D4:D7) -> 75,000.00 ₽ | E8: 75,000.00 ₽ | F8: 75,000.00 ₽ | G8: 75,000.00 ₽ | H8: 75,000.00 ₽ | I8: 75,000.00 ₽ | J8: 75,000.00 ₽ | K8: 75,000.00 ₽ | L8: 75,000.00 ₽ | M8: 75,000.00 ₽ | N8: 75,000.00 ₽ | O8: 900,000.00 ₽
B9: Стоимость проданных товаров | C9: 1,000.00 ₽ | D9: 1,000.00 ₽ | E9: 1,000.00 ₽ | F9: 1,000.00 ₽ | G9: 1,000.00 ₽ | H9: 1,000.00 ₽ | I9: 1,000.00 ₽ | J9: 1,000.00 ₽ | K9: 1,000.00 ₽ | L9: 1,000.00 ₽ | M9: 1,000.00 ₽ | N9: 1,000.00 ₽ | O9: 12,000.00 ₽
B10: Валовая прибыль | C10: =C8-C9 -> 74,000.00 ₽ | D10: =D8-D9 -> 74,000.00 ₽ | E10: 74,000.00 ₽ | F10: 74,000.00 ₽ | G10: 74,000.00 ₽ | H10: 74,000.00 ₽ | I10: 74,000.00 ₽ | J10: 74,000.00 ₽ | K10: 74,000.00 ₽ | L10: 74,000.00 ₽ | M10: 74,000.00 ₽ | N10: 74,000.00 ₽ | O10: 888,000.00 ₽
B12: РАСХОДЫ | C12: =C3 -> 2019-01-01 | D12: =DATE(YEAR(C12),MONTH(C12)+1,1) -> 2019-02-01 | E12: =DATE(YEAR(D12),MONTH(D12)+1,1) -> 2019-03-01 | F12: 2019-04-01 | G12: 2019-05-01 | H12: 2019-06-01 | I12: 2019-07-01 | J12: 2019-08-01 | K12: 2019-09-01 | L12: 2019-10-01 | M12: 2019-11-01 | N12: 2019-12-01 | O12: С НАЧАЛА ГОДА
B13: Общие административные | C13: 912.50 ₽ | D13: 912.50 ₽ | E13: 912.50 ₽ | F13: 912.50 ₽ | G13: 912.50 ₽ | H13: 912.50 ₽ | I13: 912.50 ₽ | J13: 912.50 ₽ | K13: 912.50 ₽ | L13: 912.50 ₽ | M13: 912.50 ₽ | N13: 912.50 ₽ | O13: =SUM(C13:N13) -> 10,950.00 ₽
B14: Расположение / офис | C14: 29,575.00 ₽ | D14: 29,575.00 ₽ | E14: 29,575.00 ₽ | F14: 29,575.00 ₽ | G14: 29,575.00 ₽ | H14: 29,575.00 ₽ | I14: 29,575.00 ₽ | J14: 29,575.00 ₽ | K14: 29,575.00 ₽ | L14: 29,575.00 ₽ | M14: 29,575.00 ₽ | N14: 29,575.00 ₽ | O14: 354,900.00 ₽
B15: Маркетинг | C15: 1,108.00 ₽ | D15: 1,108.00 ₽ | E15: 1,108.00 ₽ | F15: 1,108.00 ₽ | G15: 1,108.00 ₽ | H15: 1,108.00 ₽ | I15: 1,108.00 ₽ | J15: 1,108.00 ₽ | K15: 1,108.00 ₽ | L15: 1,108.00 ₽ | M15: 1,108.00 ₽ | N15: 1,108.00 ₽ | O15: 13,296.00 ₽
B16: Персонал | C16: 17,083.33 ₽ | D16: 17,083.33 ₽ | E16: 17,083.33 ₽ | F16: 17,083.33 ₽ | G16: 17,083.33 ₽ | H16: 17,083.33 ₽ | I16: 17,083.33 ₽ | J16: 17,083.33 ₽ | K16: 17,083.33 ₽ | L16: 17,083.33 ₽ | M16: 17,083.33 ₽ | N16: 17,083.33 ₽ | O16: 204,999.96 ₽
B17: Другое | C17: 500.00 ₽ | D17: 500.00 ₽ | E17: 500.00 ₽ | F17: 500.00 ₽ | G17: 500.00 ₽ | H17: 500.00 ₽ | I17: 500.00 ₽ | J17: 500.00 ₽ | K17: 500.00 ₽ | L17: 500.00 ₽ | M17: 500.00 ₽ | N17: 500.00 ₽ | O17: 6,000.00 ₽
B18: Общие расходы | C18: =SUM(C13:C17) -> 49,178.83 ₽ | D18: =SUM(D13:D17) -> 49,178.83 ₽ | E18: 49,178.83 ₽ | F18: 49,178.83 ₽ | G18: 49,178.83 ₽ | H18: 49,178.83 ₽ | I18: 49,178.83 ₽ | J18: 49,178.83 ₽ | K18: 49,178.83 ₽ | L18: 49,178.83 ₽ | M18: 49,178.83 ₽ | N18: 49,178.83 ₽ | O18: 590,145.96 ₽
B19: Доход до уплаты налогов | C19: =C10-C18 -> 24,821.17 ₽ | D19: =D10-D18 -> 24,821.17 ₽ | E19: 24,821.17 ₽ | F19: 24,821.17 ₽ | G19: 24,821.17 ₽ | H19: 24,821.17 ₽ | I19: 24,821.17 ₽ | J19: 24,821.17 ₽ | K19: 24,821.17 ₽ | L19: 24,821.17 ₽ | M19: 24,821.17 ₽ | N19: 24,821.17 ₽ | O19: =SUM(C19:N19) -> 297,854.04 ₽
B20: Расходы по налогу на прибыль | C20: =IFERROR(C19*0.15,"") -> 3,723.18 ₽ | D20: =IFERROR(D19*0.15,"") -> 3,723.18 ₽ | E20: 3,723.18 ₽ | F20: 3,723.18 ₽ | G20: 3,723.18 ₽ | H20: 3,723.18 ₽ | I20: 3,723.18 ₽ | J20: 3,723.18 ₽ | K20: 3,723.18 ₽ | L20: 3,723.18 ₽ | M20: 3,723.18 ₽ | N20: 3,723.18 ₽ | O20: 44,678.11 ₽
B22: ЧИСТАЯ ПРИБЫЛЬ | C22: =C19-C20 -> 21,097.99 ₽ | D22: =D19-D20 -> 21,097.99 ₽ | E22: 21,097.99 ₽ | F22: 21,097.99 ₽ | G22: 21,097.99 ₽ | H22: 21,097.99 ₽ | I22: 21,097.99 ₽ | J22: 21,097.99 ₽ | K22: 21,097.99 ₽ | L22: 21,097.99 ₽ | M22: 21,097.99 ₽ | N22: 21,097.99 ₽ | O22: 253,175.93 ₽
